{"text_format":"3","workbook":"xlsx","n_sheets":35,"sheets":["Anleitung","Module","PO Allgemein","AppSetup","CST","OS-AZD","FA-Fakturierung","SEPA","KV-Kundenverwaltung","TM-Tarifmodell","PV - Personenverwaltung","MV-Miterbeiterverwaltung","DM-Dokumentenverwaltung","BV-Bezirksverwaltung","AT-Abholtouren","PZ-Planung Zustellung","BX-Boxmanagement","BE-Bilderfassung","JOB-Jobs","PR-Produktion","RE-Redressbearbeitung","RE-Redress","RE-Massenverarbeitung","ME-Massenerfassung","MS-Spät","FE-Formularerfassung","RM-Reklamationsmanagement","SR-Sendungsrecherche","DTS-Data Terminal stationär","MS-IHS","SSI","LS - Lettershop","Zugangsberechtigungen","Report","Allgemeine Punkte"],"not_rendered":{"defined_names":2},"read":"whole","date_system":"1900"}

{"sheet":"Anleitung","index":0,"n_rows":17,"n_cols":1,"rows_kept":17}
["Anleitung"]
[]
["Zweck dieses Dokumentes"]
["Diese Dokument dient als Basis für den Test der verschiedenen PO-Module."]
[]
["Ziel"]
["Spalte 'Status OK' in Blatt 'Module' beinhaltet überall ein 'X' ->  Test PO = OK"]
[]
["Vorgehen"]
["1. Die einzelnen PO-Module sind auf dem 'Blatt' 'Module' ausgeführt."]
["2. Ein Hyperlink führt Sie von 'Module' direkt auf das entsprechende Arbeitsblatt"]
["3. Auf dem ausgewählten Blatt sind die entsprechenden Testpunkte aufgeführt."]
["4. Die Spalte 'Phase' dient als Information zur priorisirten Erledigung des Testtask's\n     Phasen mit der tiefsten Nummer müssen zuerst und zusammen getestet werden."]
["5. Kann ein Testtask zur vollen Zufriedenheit abgeschlossen werden so wird in der Spalte 'Status OK' ein 'X' gesetzt.\n     Ansonsten in der Spalte 'Status NOK'"]
["6. In der Spalte 'Bemerkungen' können zusätzliche Infomationen betreffend des getesteten Task's eingegeben werden."]
["7. In der Spalte 'Anhang (Hyperlink auf Word-Datei )' kann ein Hyperlink auf eine bestehendes Dokument mit Screenshots sowie Testresultaten hinterlegt werden"]
["8. Im Blatt 'Allgemeine Punkte' kann eine Liste der festgestellten Probleme geführt werden.\n     Sie beinhaltet zusätzlich eine 'Prioritäten'-Spalte"]

{"sheet":"Module","index":1,"n_rows":56,"n_cols":5,"rows_kept":56}
[null,"Test"]
[]
[null,"Version: 1.0.0","Status",null,"Bemerkung"]
[null,"Module","OK ","NOK "]
[null,"AppSetup"]
[null,"CST"]
[null,"PO Allgemein"]
[null,"Verwaltung"]
[null,"FA - Fakturierung"]
[null,"KV - Kundenverwaltung SEPA"]
[null,"KV - Kundenverwaltung"]
[null,"TM - Tarifmodell"]
["IHS","ABO - Abonnentenverwaltung"]
["IHS","PV - Personenverwaltung"]
[null,"DM - Dokumentenmanagement"]
[null,"MV - Mitarbeiterverwaltung"]
[null,"Report"]
[]
[null,"Produktion"]
[null,"BE - Bilderfassung"]
[null,"JOB - Jobs"]
[null,"OS - AZD"]
["IHS","OS - IHS"]
["IHS","DIE POST"]
["AZD","PR - Produktion"]
["AZD","RE - Redressbearbeitung"]
["AZD","RE - Massenverarbeitung"]
["AZD","ME - Massenerfassung"]
[null,"MS - Spät - Manuelle Sortierung Späterfassung"]
["AZD","RE - Redress"]
[null,"MS - Früh - Manuelle Sortierung"]
["IHS","MS - IHS - Manuelle Sortierung Inhouse Service"]
["IHS","Sortierregal"]
[]
[null,"Logistik"]
["AZD","AT - Abholtouren"]
[null,"BV - Bezirksverwaltung"]
["AZD","PZ - Planung Zustellung"]
["AZD","BX - Boxmanagement"]
[]
[null,"Qualitätssicherung"]
[null,"FE - Formularerfassung"]
[null,"RM - Reklamationsmanagement"]
[null,"SR - Sendungsrecherche"]
[null,"DTS - Data Terminal stationär"]
[]
[null,"Schnittstellen"]
[null,"SSI"]
[null,"LS - Lettershop"]
[]
[null,"Einstellungen"]
[null,"Zugangsberechtigungen"]
[]
[]
[null,"Allgemein"]
[null,"Allgemeine Punkte"]

{"sheet":"PO Allgemein","index":2,"n_rows":41,"n_cols":7,"rows_kept":41}
[null,"Phase",null,{"$f":"Module!C3","v":"Status"},null,{"$f":"Module!E3","v":"Bemerkung"},"Anhang (Hyperlink auf Word-Datei )"]
[null,null,"PO Allgemein","OK ","NOK "]
[{"$f":"A1+1","v":1},1,"PO Aufstart: Zeit, Meldungen"]
[{"$f":"A3+1","v":2},1,"Test: GUI"]
[{"$f":"A4+1","v":3},1,"Einloggen: Administrator, Wechsel"]
[4,1,"Lizenzen einlesen, wechseln"]
[5,1,"Modulliste: Anwahl, Wechsel"]
[6,1,"Menüliste"]
[7,null,"- Datei : Beenden"]
[8,null,"- Ansicht: Modulleiste"]
[9,null,"- Ansicht: Statusleiste"]
[10,null,"- Ansicht: Standardansicht setzen"]
[11,null,"- Ansicht: aktuelle Fensterposition fixieren"]
[12,null,"- Administrator: Custfield-Handling"]
[13,null,"- Labeldrucker: Drucker auswählen"]
[14,null,"- Labeldrucker: Drucker initialisieren"]
[15,null,"- Labeldrucker: Druckerreset"]
[16,null,"- Labeldrucker: Druckereinstellungen aktualisieren"]
[17,null,"- Labeldrucker: Labellayout aktualisieren"]
[18,null,"- Labeldrucker: Label kalibrieren"]
[19,null,"- Labeldrucker: Druckerstatus"]
[20,null,"- Labeldrucker: Drucker Dateistatus"]
[21,null,"- Labeldrucker: Drucke letztes Label ..."]
[22,null,"- Labeldrucker: Testdruck ..."]
[23,null,"- Zusatzdruck: Drucken"]
[24,null,"- Zusatzdruck: Nochmals drucken"]
[25,null,"- Zusatzdruck: Drucken bei Kundenwechsel"]
[26,null,"- Mitarbeiter Importe: Mitarbeiterimport"]
[27,null,"- Mitarbeiter Importe: Mitarbeiter Bezirksimport"]
[28,null,"- Bezirk-Import: Manueller Import"]
[29,null,"- Standard Kundenimport: Kundendaten importieren"]
[30,null,"- Testbriefe: Testbriefe generieren [externe Daten]"]
[31,null,"- Testbriefe: Testbriefe generieren [interne Daten]"]
[32,null,"- Ascom F324: Daten importieren"]
[33,1,"- Userlog: Userlog anzeigen"]
[34,null,"- Sprache: Sprache einstellen"]
[35,1,"- Hilfe: Lizenzen verwalten"]
[36,1,"- Hilfe: Sort Tree Info"]
[37,1,"- Hilfe: Dokumentation"]
[38,1,"- Hilfe: Info"]
[39,1,"DataLogger"]

{"sheet":"AppSetup","index":3,"n_rows":9,"n_cols":7,"rows_kept":9}
[null,"Phase",null,{"$f":"Module!C3","v":"Status"},null,{"$f":"Module!E3","v":"Bemerkung"},{"$f":"'PO Allgemein'!G1","v":"Anhang (Hyperlink auf Word-Datei )"}]
[null,null,"AppSetup","OK ","NOK "]
[null,null,"Installation Server"]
[null,null,"Start Setup möglich"]
[null,null,"werden keine Fehlermeldungen angezeigt"]
[null,null,"wird Service gestartet"]
[]
[]
[null,null,"Installation Client"]

{"sheet":"CST","index":4,"n_rows":3,"n_cols":7,"rows_kept":3}
[null,"Phase",null,{"$f":"Module!C3","v":"Status"},null,{"$f":"Module!E3","v":"Bemerkung"},{"$f":"'PO Allgemein'!G1","v":"Anhang (Hyperlink auf Word-Datei )"}]
[null,null,"CST","OK ","NOK "]
[{"$f":"A1+1","v":1},null,"Start CST"]

{"sheet":"OS-AZD","index":5,"n_rows":37,"n_cols":7,"rows_kept":37}
[null,"Phase",null,{"$f":"Module!C3","v":"Status"},null,{"$f":"Module!E3","v":"Bemerkung"},{"$f":"'PO Allgemein'!G1","v":"Anhang (Hyperlink auf Word-Datei )"}]
[null,null,"OS-AZD","OK ","NOK "]
[null,null,"Einstellungen (Einstellungen, Verwaltung)"]
[null,null,"-"]
[null,null,"OS-AZD"]
[1,1,"GUI-Kontrolle"]
[null,1,"Erfassung"]
[null,1,"Routung"]
[null,1,"Startet das System mit dem korrekten Planzustelldatum"]
[null,null,"Labelvorschub am Drucker korrekt"]
[null,null,"werden Alias Straßennamen korrekt verarbeitet"]
[null,null,"werden Nachsendeadressen korrekt verarbeitet (incl. Adress- & Sendungslabel)"]
[null,null,"werden Korrekturadressen korrekt verarbeitet (incl. Adress- & Sendungslabel)"]
[null,null,"lassen sich Sendungen mit verändertem Planzustelldatum erfassen"]
[null,1,"wird die Sendung korrekt gespeichert (Recherche)"]
[null,null,"werden Überlaufbezirke korrekt berücksichtigt"]
[null,null,"werden Hausnummernzusätze korrekt erkannt (i, j, g, l, ) und geroutet"]
[null,null,"Hausnummernzusätze (12, 12a) (Routung bei versch. Bezirken)"]
[null,null,"springt die Leistung in der MS bei Kundenwechsel auf Standard (Briefsendung)"]
[null,1,"Suche von Korrekturadressen über die F7-Taste"]
[null,1,"Straßensuche über F3-Taste"]
[null,1,"Bezirksauswahl über F6-Taste"]
[null,null,"wird der Ortsteil während der Erfassung erfragt"]
[null,null,"Vorabanzeige der Routinginfo (F8) bei der manuellen Eingabe"]
[null,1,"lässt sich über F4 eine Sendung neu routen"]
[null,1,"lässt sich über F4 ein Planzustelldatum/Auftragsdatum neu setzen"]
[null,null,"gesperrte Leistungen dürfen während der Erfassung nicht angezeigt werden"]
[null,null,"wird die definierte Überlaufgrenze/Menge korrekt berücksichtigt"]
[null,null,"werden gesperrte Zustelltage korrekt berücksichtigt"]
[null,null,"wird das Sendungslabel bei gesperrten Zustelltagen korrekt ausgegeben (\"G\")"]
[null,null,"F2-Funktion soll nur die OCR abgeschaltet werden (nicht Waage und Format) OS-AZD"]
[null,null,"wird ein Adresslabel gedruckt, wenn Nachsendeadresse übernommen wird"]
[null,null,"wird ein Adresslabel gedruckt, bei automatischer Straßenkorrektur"]
[null,null,"werden Sendungen automatisch gespeichert (oder Crtl & Enter)"]
[null,null,"wird Format korrekt erkannt (auch Hoch- & Querformate)"]
[null,null,"wird ein über F6 ausgewählter Bezirk korrekt übernommen"]
[null,null,"lässt sich die Bildspeicherung abschalten"]

{"sheet":"FA-Fakturierung","index":6,"n_rows":33,"n_cols":7,"rows_kept":33}
[null,"Phase",null,{"$f":"Module!C3","v":"Status"},null,{"$f":"Module!E3","v":"Bemerkung"},{"$f":"'PO Allgemein'!G1","v":"Anhang (Hyperlink auf Word-Datei )"}]
[null,null,"FA-Fakturierung","OK ","NOK "]
[null,null,"Einstellungen-Verwaltung-Fakturierungssystem"]
[null,null,"Test: GUI"]
[null,null,"Einstellungen FA-Config"]
[null,null,"Rechnungslaufdefinitionen "]
[null,null,"Definition Zahlungsbedingungen"]
[null,null,"Rechnungsgruppen"]
[null,null,"Rechnung Gruppierungsdefinition"]
[null,null,"Definition FA-Rechnungsmandant"]
[null,null,"FA-Fakturierung"]
[null,null,"Test: GUI"]
[1,null,"Rechnungslauf"]
[2,null," Rechnungslayout"]
[3,null,"Header korrekt Adresse, Datum, Nr. usw."]
[4,null,"Footer korrekt"]
[5,null,"Datum Abrechnungszeitraum"]
[6,null,"Mehrseitige Rechnung "]
[7,null,"Mehrwertsteuer korrekt"]
[8,null,"Bankverbindung"]
[9,null,"Zahlungsbedingungen"]
[10,null,"pdf erstellen"]
[11,null,"Rechnungsdruck mit / ohne Detailliste"]
[12,null,"Auftrag manuell anlegen"]
[13,null,"Auftrag löschen"]
[14,null,"Auftrag bearbeiten"]
[15,null,"Auftrag Kunde / Kostenstelle ändern"]
[16,null,"provisorische Rechnung erzeugen"]
[17,null,"Rechnung abschliessen"]
[18,null,"Rechnung stornieren"]
[19,null,"Reklamation für Rechnung"]
[20,null,"Rechnung löschen"]
[21,null,"FIBU Export"]

{"sheet":"SEPA","index":7,"n_rows":32,"n_cols":7,"rows_kept":32}
[null,"Phase",null,{"$f":"Module!C3","v":"Status"},null,{"$f":"Module!E3","v":"Bemerkung"},{"$f":"'PO Allgemein'!G1","v":"Anhang (Hyperlink auf Word-Datei )"}]
[null,null,"SEPA","OK ","NOK "]
[null,null,"Einstellungen (Einstellungen, Verwaltung)"]
[null,null,"Einstellungen - Verwaltung - Fakturierungssystem - FA-Rechnungsmandant\nMit SEPA Lizenz kann pro FA-Rechnungsmandant eine Gläubiger ID und Adresse erfasst werden \nDiese Gläubigerdaten werden jeweils in ein neues SEPA-Mandat übernommen."]
[null,null,"Einstellungen - Verwaltung - Fakturierungssystem - Zahlungsbedingungen\nUm die Rechnung als Pre-Notification zu nutzen muss der Text mit den notwendigen Variablen in den Zahlungsbedingungen erfasst werden. "]
[]
[null,null,"SEPA"]
[null,null,"Kundenverwaltung - Rechnungsdefinitionen, Eingabefelder für SEPA und LSV vorhanden?"]
[null,null,"SEPA Mandat erfassen (Maske aktivieren mit Haken in Checkbox)"]
[null,null,"SEPA Type Dropdown, Auswahl komplett? (Basislastschrift, Basislastschrift verkürzte Einlieferfrist, Firmenlastschrift)"]
[null,null,"Gläubiger ID & Adresse des FA-Rechnungsmandanten wird aus Einstellungen Rechnungsmandant übernommen)"]
[null,null,"Mandat ID ist kundenübergreifend eindeutig"]
[null,null,"Mandatsreferenz wird defaultmässig mit MandatsUPOC gefüllt "]
[null,null,"Kundenadresse (Debitor) wird automatisch aus den Stammdaten übernommen"]
[null,null,"Gläubigeradresse kann manuell verändert werden"]
[null,null,"Mandatsadresse kann manuelle geändert werden"]
[null,null,"Nach Erfassung aller Daten Druck des Mandats mit den erfassten Daten\n- Vorlage Basislastschrift\n- Vorlage Firmenlastschrift"]
[null,null,"LSV Einzugermächtigung erfassen (Maske mit Haken in Checkbox aktivieren)"]
[null,null,"SEPA & LSV gleichzeigt möglich. 1. Prio hat SEPA"]
[null,null,"Import von Mandaten CORE, (COR1 not yet), B2B"]
[null,null,"Import Mandat mit bereits vorhandener Mandats ID"]
[null,null,"Import von Mandaten mit Datum Vergangenheit"]
[null,null,"Export von Mandaten"]
[]
[]
[null,null,"Rechnungen"]
[null,null,"Rechnung mit gültigem SEPA Mandat - SEPA Rechnung wird erstellt\n- die SEPA Rechnung enthält Prenotification Text gem. Einstellungen - Zahlungsbedingungen\n- SEPA Datum Fälligkeit ist korrekt"]
[null,null,"Rechnung mit ungültigem SEPA Mandat (ohne LSV)\n- es wird eine normale Rechnung erstellt \n- Warnung ungültiges SEPA Mandat (Filter setzen mit Haken Warnung)"]
[null,null,"Rechnung mit SEPA und Lastschrift - beide gültig\n- es wird eine SEPA Rechnung erstellt"]
[null,null,"Rechnung mit SEPA ungültig und Lastschrift gültig\n- es wird eine LSV Rechnung erstellt \n- Warnung ungültiges SEPA Mandat (Filter setzen mit Haken Warnung)"]
[null,null,"Rechnung mit SEPA ungültig und Lastschrift ungültig\n- es wird eine normale Rechnung erstellt \n- Warnung ungültiges SEPA Mandat (Filter setzen mit Haken Warnung)"]
[null,null,"Storno einer SEPA Rechnung"]

{"sheet":"KV-Kundenverwaltung","index":8,"n_rows":31,"n_cols":7,"rows_kept":31}
[null,"Phase",null,{"$f":"Module!C3","v":"Status"},null,{"$f":"Module!E3","v":"Bemerkung"},{"$f":"'PO Allgemein'!G1","v":"Anhang (Hyperlink auf Word-Datei )"}]
[null,null,"KV-Kundenverwaltung","OK ","NOK "]
[null,null,"Einstellungen (Einstellunen, Verwaltung)"]
[null,null,"Test: GUI"]
[null,null,"Anlegen Kundengruppe"]
[null,null,"Anlegen Funktionen"]
[null,null,"Einstellungen Administration"]
[null,null,"Anlegen Abholtourgruppen"]
[null,null,"Anlegen Kundenbetreuer Typen"]
[null,null,"Anlegen Partnerfunktion & Definition"]
[null,null,"Anlegen Adresstypen"]
[null,null,"KV-Kundenverwaltung"]
[null,null,"Test GUI"]
[null,null,"Kunden anlegen"]
[null,null,"Rechnungsdefinitionen einrichten - prüfen"]
[null,null,"Zyklischen Artikel zuweisen "]
[null,null,"Vorausverfügungen setzen"]
[null,null,"Kundenpreise zuweisen"]
[null,null,"Kunden sperren"]
[null,null,"Ansprechpartner setzen"]
[null,null,"Journale hinterlegen mit Datei"]
[null,null,"Journale hinterlegen ohne Datei"]
[null,null,"Register \"Eigene Daten\" pflegen"]
[null,null,"Abholtour zuweisen."]
[null,null,"Partnersperre einrichten"]
[null,null,"Prelabeling Status: Prelabeling hinterlegen, Warengrenzen prüfen."]
[null,null,"Vorlage Kunde erstellen"]
[null,null,"Vorlage Kostenstelle erstellen"]
[null,null,"Leistungssperre für Kunden hinterlegen und Testen, ob die Leistungssperre an allen Erfassungsmedien funktioniert"]
[null,null,"Kundengruppe in den Einstellungen definieren und einem Kundenzuweisen"]
[null,null,"Preisgruppe in den Einstellungen definieren und einem Kunden zuweisen"]

{"sheet":"TM-Tarifmodell","index":9,"n_rows":23,"n_cols":7,"rows_kept":23}
[null,"Phase",null,{"$f":"Module!C3","v":"Status"},null,{"$f":"Module!E3","v":"Bemerkung"},{"$f":"'PO Allgemein'!G1","v":"Anhang (Hyperlink auf Word-Datei )"}]
[null,null,"Tarifmodell","OK ","NOK "]
[null,null,"Einstellungen-Verwaltung-Tarifmodell (erfassen, prüfen)"]
[null,null,"Test: GUI"]
[null,null,"Leistungen "]
[null,null,"Mehrwertsteuer"]
[null,null,"Preisgruppe / standard Preisgruppe"]
[null,null,"Dienstleister / Zone"]
[null,null,"Kostenträger"]
[null,null,"Warengruppe"]
[null,null,"Zyklische Artikel"]
[null,null,"Tarifmodell"]
[null,null,"Test: GUI"]
[1,null,"Artikel anlegen"]
[2,null,"Artikel ändern"]
[3,null,"Artikel Bearbeitung abbrechen"]
[4,null,"Verbundener Artikel"]
[5,null,"Artikel Sendungsbezogen / nicht Sendungsbezogen"]
[6,null,"zyklischer Artikel"]
[7,null,"Artikelliste drucken"]
[8,null,"Liste Sonderkonditionen drucken"]
[9,null,"Artikel löschen"]
[10,null,"Artikel kopieren"]

{"sheet":"PV - Personenverwaltung","index":10,"n_rows":13,"n_cols":7,"rows_kept":13}
[null,"Phase",null,{"$f":"Module!C3","v":"Status"},null,{"$f":"Module!E3","v":"Bemerkung"},{"$f":"'PO Allgemein'!G1","v":"Anhang (Hyperlink auf Word-Datei )"}]
[null,null,"PV - Personalverwaltung","OK ","NOK "]
[null,null,"Person erfassen/ bearbeiten"]
[null,null,"- Person erfassen"]
[null,null,"- Arbeitsplatz erfassen"]
[null,null,"- Drucken"]
[null,null,"- Arbeitsplatz löschen"]
[null,null,"- Person löschen"]
[null,null,"Personenliste drucken"]
[null,null,"Person importieren"]
[null,null,"User log anschauen"]
[null,null,"Personen suchen"]
[null,null,"Browser-Felder setzen/ entfernen"]

{"sheet":"MV-Miterbeiterverwaltung","index":11,"n_rows":28,"n_cols":7,"rows_kept":28}
[null,"Phase",null,{"$f":"Module!C3","v":"Status"},null,{"$f":"Module!E3","v":"Bemerkung"},{"$f":"'PO Allgemein'!G1","v":"Anhang (Hyperlink auf Word-Datei )"}]
[null,null,"Mitarbeiterverwaltung","OK ","NOK "]
[null,null,"In den Zugangsberechtigungen Rollen und Berechtigungen prüfen"]
[null,null,"Einstellungen-Verwaltung-Mitabeiterverwaltung"]
[null,null,"Test: GUI"]
[null,null,"Lohngruppen "]
[null,null,"Mitarbeiterfunktion"]
[null,null,"Kapazitätsgrenzen"]
[null,null,"Administration"]
[null,null,"Einstellungen-Verwaltung-Mitabeiterabrechnung"]
[null,null,"Test: GUI"]
[null,null,"Allgemeine Konfiguration (Einstellungen für die Mitarbeiterabrechnung)"]
[null,null,"Vergütungskategorie (wirksam im Bezirk)"]
[null,null,"Lohnart"]
[null,null,"Vergütung pro Sendung (pro Vergütungskategorie)"]
[null,null,"Pauschalvergütung"]
[null,null,"Mitarbeiterverwaltung"]
[null,null,"Test: GUI"]
[null,null,"Mitarbeiter erfassen"]
[null,null,"Mitarbeiter bearbeiten"]
[null,null,"Mitabeiter löschen"]
[null,null,"Mitarbeiter an Depot zuweisen"]
[null,null,"Mitarbeiter Funktion zuweisen"]
[null,null,"Mitarbeiter zu Lohngruppe zuweisen"]
[null,null,"Mit Button Benutzer bearbeiten den Mitarbeiter einer Rolle zuweisen für Zugangsberechtigungen "]
[null,null,"Mitarbeiter an Bezirk zuweisen"]
[null,null,"Manuell eine Abrechnungsposition erfassen"]
[null,null,"Kapazitätsgrenzen"]

{"sheet":"DM-Dokumentenverwaltung","index":12,"n_rows":6,"n_cols":7,"rows_kept":6}
[null,"Phase",null,{"$f":"Module!C3","v":"Status"},null,{"$f":"Module!E3","v":"Bemerkung"},{"$f":"'PO Allgemein'!G1","v":"Anhang (Hyperlink auf Word-Datei )"}]
[null,null,"Dokumentenverwaltung","OK ","NOK "]
[null,null,"In den Zugangsberechtigungen Rollen und Berechtigungen prüfen"]
[null,null,"Dokumentenverwaltung"]
[null,null,"Test: GUI"]
[null,null,"Erfassen/Bearbeiten"]

{"sheet":"BV-Bezirksverwaltung","index":13,"n_rows":34,"n_cols":7,"rows_kept":34}
[null,"Phase",null,{"$f":"Module!C3","v":"Status"},null,{"$f":"Module!E3","v":"Bemerkung"},{"$f":"'PO Allgemein'!G1","v":"Anhang (Hyperlink auf Word-Datei )"}]
[null,null,"Bezirksverwaltung","OK ","NOK "]
[null,null,"In den Zugangsberechtigungen Rollen und Berechtigungen prüfen"]
[null,null,"Einstellungen-Logistik-Bezirksverwaltung"]
[null,null,"Test: GUI"]
[null,null,"Erfassen Allgemein"]
[null,null,"Erfassen Zustellkategorien"]
[null,null,"Erfassen Definition Six"]
[null,null,"Einstellungen-Logistik-BV: Erweiterte Attribute"]
[null,null,"Einstellungen-Logistik-Bezirk Import"]
[]
[]
[null,null,"Bezirksverwaltung"]
[null,null,"Test: GUI"]
[null,null,"Tab: Bezirk"]
[null,null,"Tab: Gebiet"]
[null,null,"Tab: Depot"]
[null,null,"- Suche mit Platzhaltern"]
[null,null,"- Erfassen/Bearbeiten"]
[null,null,"- Drucken"]
[null,null,"Tab: Umschlagplatz"]
[null,null,"Tab: Abladestelle"]
[null,null,"Tab: Zustellorganisation"]
[null,null,"- Suche mit Platzhaltern"]
[null,null,"- Erfassen/Bearbeiten"]
[null,null,"- Drucken"]
[null,null,"Tab: Ausliefertourenplan"]
[null,null,"- Erfassen/Bearbeiten"]
[null,null,"- Drucken"]
[null,null,"Tab: Sortierplan"]
[null,null,"Tab: Lager"]
[null,null,"- Erfassen/Bearbeiten"]
[null,null,"- Drucken"]
[null,null,"Tab: Zustell-Info"]

{"sheet":"AT-Abholtouren","index":14,"n_rows":15,"n_cols":7,"rows_kept":15}
[null,"Phase",null,{"$f":"Module!C3","v":"Status"},null,{"$f":"Module!E3","v":"Bemerkung"},{"$f":"'PO Allgemein'!G1","v":"Anhang (Hyperlink auf Word-Datei )"}]
[null,null,"Abholtouren","OK ","NOK "]
[null,null,"In den Zugangsberechtigungen Rollen und Berechtigungen prüfen"]
[null,null,"Einstellungen-Logistik-Abholtouren"]
[null,null,"Test: GUI"]
[null,null,"Erfassen"]
[]
[null,null,"Abholtouren"]
[null,null,"Test: GUI"]
[null,null,"Tab: Standard Abholtouren"]
[null,null,"- Erfassen/Bearbeiten"]
[null,null,"- Drucken"]
[null,null,"Tab: Abholkalender"]
[null,null,"- Erfassen/Bearbeiten"]
[null,null,"- Drucken"]

{"sheet":"PZ-Planung Zustellung","index":15,"n_rows":7,"n_cols":7,"rows_kept":7}
[null,"Phase",null,{"$f":"Module!C3","v":"Status"},null,{"$f":"Module!E3","v":"Bemerkung"},{"$f":"'PO Allgemein'!G1","v":"Anhang (Hyperlink auf Word-Datei )"}]
[null,null,"Planung Zustellung","OK ","NOK "]
[null,null,"In den Zugangsberechtigungen Rollen und Berechtigungen prüfen"]
[]
[null,null,"Planung Zustellung"]
[null,null,"Test: GUI"]
[null,null,"Erfassen/Bearbeiten"]

{"sheet":"BX-Boxmanagement","index":16,"n_rows":13,"n_cols":7,"rows_kept":13}
[null,"Phase",null,{"$f":"Module!C3","v":"Status"},null,{"$f":"Module!E3","v":"Bemerkung"},{"$f":"'PO Allgemein'!G1","v":"Anhang (Hyperlink auf Word-Datei )"}]
[null,null,"Boxmanagement","OK ","NOK "]
[null,null,"In den Zugangsberechtigungen Rollen und Berechtigungen prüfen"]
[]
[null,null,"Boxmanagement"]
[null,null,"Test: GUI"]
[null,null,"Tab: Uebersicht"]
[null,null,"- Erfassen/Bearbeiten"]
[null,null,"- Drucken"]
[null,null,"Tab: Buchungen"]
[null,null,"- Erfassen/Bearbeiten"]
[null,null,"- Drucken"]
[null,null,"- Filter Handling"]

{"sheet":"BE-Bilderfassung","index":17,"n_rows":13,"n_cols":7,"rows_kept":13}
[null,"Phase",null,{"$f":"Module!C3","v":"Status"},null,{"$f":"Module!E3","v":"Bemerkung"},{"$f":"'PO Allgemein'!G1","v":"Anhang (Hyperlink auf Word-Datei )"}]
[null,null,"Bilderfassung","OK ","NOK "]
[null,null,"In den Zugangsberechtigungen Rollen und Berechtigungen prüfen"]
[null,null,"Einstellungen-Produktion-Handheld Scanner"]
[null,null,"Test: GUI"]
[null,null,"Aktualisieren"]
[]
[null,null,"Bilderfassung"]
[null,null,"Test: GUI"]
[null,null,"Erfassen"]
[null,null,"- Daten"]
[null,null,"- Bilder"]
[null,null,"- mehrere Bilder"]

{"sheet":"JOB-Jobs","index":18,"n_rows":10,"n_cols":7,"rows_kept":10}
[null,"Phase",null,{"$f":"Module!C3","v":"Status"},null,{"$f":"Module!E3","v":"Bemerkung"},{"$f":"'PO Allgemein'!G1","v":"Anhang (Hyperlink auf Word-Datei )"}]
[null,null,"Jobs","OK ","NOK "]
[null,null,"In den Zugangsberechtigungen Rollen und Berechtigungen prüfen"]
[]
[null,null,"Jobs"]
[null,null,"Test: GUI"]
[null,null,"Filterfunktionalität"]
[null,null,"Erfassen/Bearbeiten"]
[null,null,"Userlog"]
[null,null,"Drucken"]

{"sheet":"PR-Produktion","index":19,"n_rows":8,"n_cols":7,"rows_kept":8}
[null,"Phase",null,{"$f":"Module!C3","v":"Status"},null,{"$f":"Module!E3","v":"Bemerkung"},{"$f":"'PO Allgemein'!G1","v":"Anhang (Hyperlink auf Word-Datei )"}]
[null,null,"Produktion","OK ","NOK "]
[null,null,"In den Zugangsberechtigungen Rollen und Berechtigungen prüfen"]
[]
[null,null,"Produktion"]
[null,null,"Test: GUI"]
[null,null,"Tab: Abschliessen Bezirke"]
[null,null,"Tab: Ueberlaufbezirke"]

{"sheet":"RE-Redressbearbeitung","index":20,"n_rows":9,"n_cols":7,"rows_kept":9}
[null,"Phase",null,{"$f":"Module!C3","v":"Status"},null,{"$f":"Module!E3","v":"Bemerkung"},{"$f":"'PO Allgemein'!G1","v":"Anhang (Hyperlink auf Word-Datei )"}]
[null,null,"Redressbearbeitung","OK ","NOK "]
[null,null,"In den Zugangsberechtigungen Rollen und Berechtigungen prüfen"]
[]
[null,null,"Redressbearbeitung"]
[null,null,"Test: GUI"]
[null,null,"Erfassen/Bearbeiten"]
[null,null,"Aufruf über Funktionstasten"]
[null,null,"Suchen via Platzhalter"]

{"sheet":"RE-Redress","index":21,"n_rows":9,"n_cols":7,"rows_kept":9}
[null,"Phase",null,{"$f":"Module!C3","v":"Status"},null,{"$f":"Module!E3","v":"Bemerkung"},{"$f":"'PO Allgemein'!G1","v":"Anhang (Hyperlink auf Word-Datei )"}]
[null,null,"Redress","OK ","NOK "]
[null,null,"In den Zugangsberechtigungen Rollen und Berechtigungen prüfen"]
[]
[null,null,"Redress"]
[null,null,"Test: GUI"]
[null,null,"Erfassen/Bearbeiten"]
[null,null,"Import"]
[null,null,"Userlog"]

{"sheet":"RE-Massenverarbeitung","index":22,"n_rows":2,"n_cols":7,"rows_kept":2}
[null,"Phase",null,{"$f":"Module!C3","v":"Status"},null,{"$f":"Module!E3","v":"Bemerkung"},{"$f":"'PO Allgemein'!G1","v":"Anhang (Hyperlink auf Word-Datei )"}]
[null,null,"RE-Massenverarbeitung","OK ","NOK "]

{"sheet":"ME-Massenerfassung","index":23,"n_rows":7,"n_cols":7,"rows_kept":7}
[null,"Phase",null,{"$f":"Module!C3","v":"Status"},null,{"$f":"Module!E3","v":"Bemerkung"},{"$f":"'PO Allgemein'!G1","v":"Anhang (Hyperlink auf Word-Datei )"}]
[null,null,"Massenerfassung","OK ","NOK "]
[null,null,"In den Zugangsberechtigungen Rollen und Berechtigungen prüfen"]
[]
[null,null,"Massenerfassung"]
[null,null,"Test: GUI"]
[null,null,"Import"]

{"sheet":"MS-Spät","index":24,"n_rows":11,"n_cols":7,"rows_kept":11}
[null,"Phase",null,{"$f":"Module!C3","v":"Status"},null,{"$f":"Module!E3","v":"Bemerkung"},{"$f":"'PO Allgemein'!G1","v":"Anhang (Hyperlink auf Word-Datei )"}]
[null,null,"MS Spät","OK ","NOK "]
[null,null,"In den Zugangsberechtigungen Rollen und Berechtigungen prüfen"]
[]
[null,null,"Einstellungen-Produktion-MS Späterfassung"]
[null,null,"Erfassen/Bearbeiten Globale Einstellungen"]
[null,null,"Erfassen/Bearbeiten lokale Einstellungen"]
[]
[null,null,"MS Spät"]
[null,null,"Test: GUI"]
[null,null,"Erfassen/Bearbeiten"]

{"sheet":"FE-Formularerfassung","index":25,"n_rows":14,"n_cols":7,"rows_kept":14}
[null,"Phase",null,{"$f":"Module!C3","v":"Status"},null,{"$f":"Module!E3","v":"Bemerkung"},{"$f":"'PO Allgemein'!G1","v":"Anhang (Hyperlink auf Word-Datei )"}]
[null,null,"Formularerfassung","OK ","NOK "]
[null,null,"In den Zugangsberechtigungen Rollen und Berechtigungen prüfen"]
[]
[null,null,"Einstellungen-Qualitätssicherung-Formularerfassung"]
[null,null,"Erfassen/Bearbeiten Scanner"]
[null,null,"Erfassen/Bearbeiten Dokument-Typen"]
[]
[null,null,"Formularerfassung"]
[null,null,"Test: GUI"]
[null,null,"Tab: Nicht erkannte UPOCs erfassen"]
[null,null,"-Erfassen/Bearbeiten"]
[null,null,"Tab: Sendungen einem dokument zuweisen"]
[null,null,"-Erfassen/Bearbeiten"]

{"sheet":"RM-Reklamationsmanagement","index":26,"n_rows":12,"n_cols":7,"rows_kept":12}
[null,"Phase",null,{"$f":"Module!C3","v":"Status"},null,{"$f":"Module!E3","v":"Bemerkung"},{"$f":"'PO Allgemein'!G1","v":"Anhang (Hyperlink auf Word-Datei )"}]
[null,null,"Reklamationsmanagement","OK ","NOK "]
[null,null,"In den Zugangsberechtigungen Rollen und Berechtigungen prüfen"]
[]
[null,null,"Einstellungen-Qualitätssicherung-Reklamationsmanagement"]
[null,null,"Erfassen/Bearbeiten"]
[]
[null,null,"Reklamationsmanagement"]
[null,null,"Test: GUI"]
[null,null,"Suchen"]
[null,null,"Erfassen/Bearbeiten"]
[null,null,"Drucken"]

{"sheet":"SR-Sendungsrecherche","index":27,"n_rows":27,"n_cols":7,"rows_kept":27}
[null,"Phase",null,{"$f":"Module!C3","v":"Status"},null,{"$f":"Module!E3","v":"Bemerkung"},{"$f":"'PO Allgemein'!G1","v":"Anhang (Hyperlink auf Word-Datei )"}]
[null,null,"Sendungsrecherche","OK ","NOK "]
[null,null,"In den Zugangsberechtigungen Rollen und Berechtigungen prüfen"]
[]
[]
[null,null,"Sendungsrecherche"]
[null,null,"Test: GUI"]
[null,null,"Tab: Schlüsselwörter"]
[null,null,"- Suchen"]
[null,null,"- Erfassen/Bearbeiten"]
[null,null,"- Drucken"]
[null,null,"Tab: Adresse"]
[null,null,"- Suchen"]
[null,null,"- Erfassen/Bearbeiten"]
[null,null,"- Drucken"]
[null,null,"Tab: Erfassung"]
[null,null,"- Suchen"]
[null,null,"- Erfassen/Bearbeiten"]
[null,null,"- Drucken"]
[null,null,"Tab: Zustellung"]
[null,null,"- Suchen"]
[null,null,"- Erfassen/Bearbeiten"]
[null,null,"- Drucken"]
[null,null,"Tab: Sonstiges"]
[null,null,"- Suchen"]
[null,null,"- Erfassen/Bearbeiten"]
[null,null,"- Drucken"]

{"sheet":"DTS-Data Terminal stationär","index":28,"n_rows":12,"n_cols":7,"rows_kept":12}
[null,"Phase",null,{"$f":"Module!C3","v":"Status"},null,{"$f":"Module!E3","v":"Bemerkung"},{"$f":"'PO Allgemein'!G1","v":"Anhang (Hyperlink auf Word-Datei )"}]
[null,null,"Data Terminal stationär","OK ","NOK "]
[null,null,"In den Zugangsberechtigungen Rollen und Berechtigungen prüfen"]
[]
[null,null,"Einstellungen-Qualitätssicherung-Data Terminal stationär"]
[null,null,"Erfassen/Bearbeiten"]
[]
[null,null,"Data Terminal stationär"]
[null,null,"Test: GUI"]
[null,null,"Tab: Geführte Datenerfassung"]
[null,null,"Erfassen/Bearbeiten"]
[null,null,"Tab: Log datenerfassung via Funkscanner"]

{"sheet":"MS-IHS","index":29,"n_rows":39,"n_cols":7,"rows_kept":39}
[null,"Phase",null,{"$f":"Module!C3","v":"Status"},null,{"$f":"Module!E3","v":"Bemerkung"},{"$f":"'PO Allgemein'!G1","v":"Anhang (Hyperlink auf Word-Datei )"}]
[null,null,"MS-IHS","OK ","NOK "]
[null,null,"Einstellungen (Einstellungen, Verwaltung)"]
[null,null,"-"]
[null,null,"MS-IHS"]
[1,1,"GUI-Kontrolle"]
[null,1,"Erfassung"]
[null,1,"Routung"]
[null,1,"Startet das System mit dem korrekten Planzustelldatum"]
[null,1,"Labelvorschub am Drucker korrekt"]
[null,null,"lassen sich Sendungen mit verändertem Planzustelldatum erfassen"]
[null,1,"wird die Sendung korrekt gespeichert (Recherche)"]
[null,null,"werden Überlaufbezirke korrekt berücksichtigt"]
[null,null,"springt die Leistung in der MS bei Kundenwechsel auf Standard (Briefsendung)"]
[null,null,"Bezirksauswahl über F6-Taste"]
[null,null,"wird der Ortsteil während der Erfassung erfragt?"]
[null,1,"Vorabanzeige der Routinginfo bei der manuellen Eingabe"]
[null,1,"lässt sich über F4 eine Sendung neu routen"]
[null,1,"lässt sich über F4 ein Planzustelldatum/Auftragsdatum neu setzen"]
[null,null,"wird die definierte Überlaufgrenze/Menge korrekt berücksichtigt"]
[null,1,"werden Sendungen automatisch gespeichert (oder Crtl & Enter)"]
[null,1,"wird Format mit ELFK korrekt erkannt (auch Hoch- & Querformate) \n(Kontrolle Recheche)"]
[null,1,"wird Gewicht mit ELFK korrekt erkannt (Kontrolle Recheche)"]
[null,null,"wird ein über F6 ausgewählter Bezirk korrekt übernommen"]
[null,null,"lässt sich die Bildspeicherung abschalten"]
[null,1,"Kann über Absender eine Person, LogistikUnit oder ein Kunde ausgewählt werden"]
[null,1,"Kann über \"Eingabe Empfänger\" eine Person, LogistikUnit oder ein Kunde\nausgewählt werden"]
[null,1,"Wird nur ein Empfänger gefunden, so wird dieser autom. Selektiert"]
[null,1,"Wird der Absender gleich dem Empfänger gesetzt, wenn \"Empfänger ist\nKostenträger\" selektiert wird"]
[null,1,"Bleibt der Absender bestehen, falls \"Fixieren\" angewählt ist"]
[null,null,"Fotodialog erscheint nach jeder Sendung wenn \"Automatisch\" angewählt ist"]
[null,null,"Ein Foto wird zur Sendung gespeichert, wenn via HandScanner (Motorola) im FotoDlg\nein Foto aufgenommen wird."]
[null,1,"Wird die Anzeige bei \"Anzeige zurücksetzen\" (Abfalleimer) zurückgesetzt"]
[null,1,"Wird eine eingegebene Adresse (Eingabe Emfpängeradresse, Dlg-Icon) korrekt zur Sendung gespeichert. (Eingabe Empfängeradresse -> Save -> Auswahl Bezirk via Bezirkselektor -> Save)"]
[null,null,"UI-Elemente ausser Absender, Leistung, SendungsUPOC und Eingabe Empfänger lassen sich via hierarchischer Vererbung ein- oder ausblenden."]
[null,null,"Validierungsfehler wenn Eingabe Alternativcode als \"zwingend\" konfiguriert ist."]
[null,null,"Validierungsfehler wenn Eingabe Auftragskennung als \"zwingend\" konfiguriert ist."]
[null,1,"Sendungslabel wird immer gedruckt, wenn \"Sendungslabel drucken\" in der hierarchischen Vererbung als zwingend markiert wurde. Via UI von MS-IHS kann  das Drucken nicht beeinflusst werden."]
[null,1,"Sendungslabel wird NIE gedruckt, wenn \"Sendungslabel drucken\" in der hierarchischen Vererbung als \"Kein Sendungslabel\" markiert wurde. Via UI von MS-IHS kann das Drucken nicht beeinflusst werden."]

{"sheet":"SSI","index":30,"n_rows":67,"n_cols":7,"rows_kept":67}
[null,"Phase",null,{"$f":"Module!C3","v":"Status"},null,{"$f":"Module!E3","v":"Bemerkung"},{"$f":"'PO Allgemein'!G1","v":"Anhang (Hyperlink auf Word-Datei )"}]
[null,null,"SSI (Sortiersystem)","OK ","NOK "]
[null,null,"Allgemein"]
[null,null,"Zuordnung/Login MA\n- MA neu anlegen\n- MA mit Fkt. Sorter\n- MA löschen, Sorter\n- MA Passwort ändern -> Gültig auf Sorter"]
[null,null,"Kunden/Kostenstelle\n- Aktive an Sorter\n- Kst deaktivieren -> Sorter?\n- Kunde löschen -> Sorter?"]
[null,null,"Leistungen\n- Neue Lst. -> Sorter\n- neue Leistung gültig MS -> Sorter?\n- Verfügbarkeit Sorter <-> MS"]
[null,null,"Bezirksstrukturen\n- Unterstützung mehrere Strukturen\n- Strukturen auswählbar\n- Send. auf verschiedene Struk. anwendbar\n- Pflege Strukturen möglich auch wenn Sorter nur 1. Struktur unterstützt"]
[null,null,"Hausnummerzusätze\n- Bei der Lesung der Adressen werden Hausnummernzusätze erkannt und bei der Sortierung berücksichtigt"]
[]
[null,null,"Ersterfassung von Sendungen (Erfassungslauf)"]
[null,null,"Erfassung der Empfängeradresse\n- Erfassungslauf mit Adressübergabe\n- Erfassung Hausnummernzusatz\n- Erfassung mit Sonderzeichen in der Adresse\n"]
[null,null,"Erfassung Absender\n- Absender/ Kunde\n- Kundenwechsel\n- Kein Kunde gewählt -> Maschine startet nicht"]
[null,null,"Absender mit Trennkarte\n- Arbeit mit Kundentrennkarte möglich\n- Kundentrennkarte -> Fach NoRead\n- Kundentrennkarte können gedruckt werden"]
[null,null,"Erfassung Leistung\n- Leistung wird übergeben\n- Leistungswechsel -> neue Leistung wird übergeben\n- Keine Leistung gewählt -> Machine startet nicht"]
[null,null,"Leistung mit Trennkarte\n- Arbeit mit Leistungstrennkarten möglich\n- Leistungstrennkarte -> Fach NoRead\n- Leistungstrennkarten können gedruckt werden"]
[null,null,"Erfassung des Gewichtes\n- Erfassung des Gewichtes grammgenau (grün)\n- Erfassung des Gewichtes in Abstufungen (gelb)\n- Kein Gewicht, nur Wert (rot)"]
[null,null,"Erfassung Gewicht, eichfähig\n- Erfassung des Gewichtes eichfähig"]
[null,null,"Erfassung des Formates\n- Wird Format übergeben\n- Gibt es Ausnahmen"]
[null,null,"Erfassung Alternativcode\n- Alternativcode kann erfasst werden\n- Können alle Codes erfasst werden\n- Was passiert, wenn mehr als 2 Barcodes auf Sendung"]
[null,null,"Bezirkszuordnung\n- werden Bezirke ermittelt und übergeben\n- was passiert, wenn mehrere Bezirke gefunden\n- was passiert, wenn kein Bezirk gefunden"]
[null,null,"Aufbringen der Sendungsdaten"]
[null,null,"Fachzuordnung\n- Fach wird laut Sortierplan ermittelt\n- Sendung wird korrekt angesteuert\n- Fach wird korrekt an PO übermittelt"]
[null,null,"Bündel/Boxen\n- Können BoxenUPOCs an Maschine gelöst werden\n- Werden Send. mit UPOC verknüpft\n"]
[null,null,"Speichern Sendungsdaten\n- Übertragung Erfassungslauf\n- Übertragung Feinsortierlauf\n- Übertragung PreLabled Lauf\n- Übertragung VC Lauf\n- Lasttest Sendungsmix\n"]
[]
[null,null,"Videocodierung"]
[null,null,"Speichern unvollständiger Sendungsdaten"]
[null,null,"Korrektur Sendungsdaten"]
[null,null,"Bezirkszuordnung"]
[null,null,"VC-Lauf"]
[null,null,"Speichern Sendungsdaten"]
[]
[null,null,"Feinsortierlauf"]
[null,null,"UPOC lesen"]
[null,null,"Vervollständigen Sendungsdaten"]
[null,null,"Fachzuordnung"]
[null,null,"Speichern der Sendungsdaten"]
[]
[null,null,"Erfassung/Sortierung prelabed Sendungen"]
[null,null,"UPOC lesen"]
[null,null,"Kunden vorgegeben"]
[null,null,"Kunde/Leistung vorgegeben"]
[null,null,"Korrekte datenübergabe"]
[]
[null,null,"Verarbeitung von NICHT auf Sortiersystem erfasster Sendungen"]
[null,null,"Import Sendungen"]
[null,null,"UPOC lesen"]
[null,null,"Sendungen aus MS, ME etc"]
[null,null,"Sendnungen via TNT-Interface"]
[null,null,"Sendungen von KO-Partnern (ohne KO-BV)"]
[null,null,"Sendungen von KO-Partnern (mit KO-BV)"]
[]
[null,null,"Vorausverfügung"]
[null,null,"Arbeitsanweisung"]
[null,null,"Partnersperre"]
[null,null,"Überlaufbezirke"]
[null,null,"Abgeschlossene Bezirke"]
[null,null,"Zustelltagsperre"]
[]
[null,null,"Drucken Sendungslabel"]
[null,null,"Leistungslabel"]
[null,null,"Kundenlabel"]
[null,null,"Kostenstellenlabel"]
[]
[null,null,"Performance"]
[null,null,"Sendungsdatenübertragung"]
[null,null,"Sendungsbildübertragung"]

{"sheet":"LS - Lettershop","index":31,"n_rows":10,"n_cols":7,"rows_kept":10}
[null,"Phase",null,{"$f":"Module!C3","v":"Status"},null,{"$f":"Module!E3","v":"Bemerkung"},{"$f":"'PO Allgemein'!G1","v":"Anhang (Hyperlink auf Word-Datei )"}]
[null,null,"LS - Lettershop","OK ","NOK "]
[null,null,"Parterdaten erfassen"]
[null,null,"Partnerdten editieren"]
[null,null,"- Script erfassen/zuweisen"]
[null,null,"- Script testen"]
[null,null,"- FTP konfigurieren"]
[null,null,"- FTP testen"]
[null,null,"- Share konfigurieren"]
[null,null,"LS Job starten"]

{"sheet":"Zugangsberechtigungen","index":32,"n_rows":2,"n_cols":7,"rows_kept":2}
[null,"Phase",null,{"$f":"Module!C3","v":"Status"},null,{"$f":"Module!E3","v":"Bemerkung"},{"$f":"'PO Allgemein'!G1","v":"Anhang (Hyperlink auf Word-Datei )"}]
[null,null,"Zugangsberechtigungen","OK ","NOK "]

{"sheet":"Report","index":33,"n_rows":7,"n_cols":7,"rows_kept":7}
[null,"Phase",null,{"$f":"Module!C3","v":"Status"},null,{"$f":"Module!E3","v":"Bemerkung"},{"$f":"'PO Allgemein'!G1","v":"Anhang (Hyperlink auf Word-Datei )"}]
[null,null,"Report","OK ","NOK "]
[null,null,"In den Zugangsberechtigungen Rollen und Berechtigungen prüfen"]
[null,null,"Report"]
[null,null,"Test: GUI"]
[null,null,"Report drucken"]
[null,null,"Report anzeigen"]

{"sheet":"Allgemeine Punkte","index":34,"n_rows":3,"n_cols":10,"rows_kept":3}
["Auflistung der festgestellten Probleme:"]
[]
["Datum","Modul","Fehler","Beschreibung","Status","Änderungs-Datum ","Behelfslösung","Aktueller Stand","Status","Zuständig"]